Cogmind - Beta 13 @@@ ROGUE MODE // 2024.04.09 @ 10:36:46 Player: JackZewap Result: Destroyed by G-34 Mercenary with Small Laser Performance ------------- Evolutions (1) 500 Regions Visited (2) 400 Robots Destroyed (44) 220 Value Destroyed (1054) 1054 Prototype IDs (0) 0 Alien Tech Used (0) 0 Bonus (0) 0 TOTAL SCORE: 2174 Bonus ------- None Cogmind --------- Core Integrity 0/400 Matter 248/400 Energy 277/415 System Corruption 0% Temperature Cool (6) Movement Treading (160) Location -9/Materials Parts ------- > --- POWER (1) -------- Improved Ion Engine > --- PROPULSION (2) --- Light Treads Light Treads > --- UTILITY (4) ------ Heat Sink Large Storage Unit Medium Battery Medium Matter Pod > --- WEAPON (2) ------- Light Assault Rifle Katana > --- INVENTORY (15) --- Light Ion Engine Light Treads Huge Storage Unit Compact Matter Pod (150) Structural Scanner Sensor Array Signal Interpreter Beam Rifle Mini Grenade Launcher Mini Grenade Launcher Peak State ------------ > --- POWER ------------ Light Nuclear Core > --- PROPULSION ------- Titanium Leg Titanium Leg > --- UTILITY ---------- Improved Heat Sink Large Storage Unit Medium Battery Structural Scanner > --- WEAPON ----------- Particle Gun Particle Gun > --- INVENTORY -------- Improved Ion Engine Light Treads Light Treads Light Treads Titanium Leg Titanium Leg Small Storage Unit Huge Storage Unit Medium Matter Pod Compact Matter Pod Sensor Array Signal Interpreter Light Armor Plating Mini Grenade Launcher Mini Grenade Launcher [Rating: 21] Favorites ----------- Power Improved Ion Engine Engine Improved Ion Engine Power Core Light Nuclear Core Propulsion Light Treads Treads Light Treads Leg Titanium Leg Utility Structural Scanner Device Structural Scanner Storage Small Storage Unit Protection Light Armor Plating Weapon Assault Rifle Energy Gun Particle Gun Ballistic Gun Assault Rifle Slashing Weapon Katana Build | -11 -10 -9 ------- Run | Yrd Mat Mat Slots Evolved 2 | . . 2 Power . | . . . Propulsion . | . . . Utility 2 | . . 2 Weapon . | . . . Parts Attached 50 | 6 16 28 Power 11 | 1 3 7 Engine 10 | 1 3 6 Core 1 | . . 1 Reactor . | . . . Propulsion 16 | 2 4 10 Treads 11 | 2 4 5 Leg 5 | . . 5 Wheel . | . . . Hover . | . . . Flight . | . . . Utility 12 | 1 5 6 Device 6 | . 3 3 Storage 5 | 1 2 2 Processor . | . . . Hackware . | . . . Protection 1 | . . 1 Artifact . | . . . Weapon 11 | 2 4 5 Energy Gun 6 | 1 2 3 Energy Cannon . | . . . Ballistic Gun 4 | 1 2 1 Ballistic Cannon . | . . . Launcher . | . . . Special Weapon . | . . . Impact Weapon . | . . . Slashing Weapon 1 | . . 1 Piercing Weapon . | . . . Special Melee Weapon . | . . . Unidentified Prototypes . | . . . Parts Lost 15 | . 3 12 Power 5 | . 1 4 Propulsion 4 | . 1 3 Utility 2 | . . 2 Weapon 4 | . 1 3 Highest Loss Streak 8 | . 1 8 To Critical Strikes . | . . . Average Slot Usage (%) 92 | . 91 93 Engine 11 | . 13 7 Treads 21 | . 27 3 Leg 4 | . . 17 Device 14 | . 13 17 Storage 16 | . 14 22 Energy Gun 8 | . 4 19 Ballistic Gun 12 | . 16 1 Naked Turns . | . . . Heaviest Build 37 | 14 34 37 Greatest Support 40 | 40 40 40 Greatest Overweight (x) 12 | 3 . 12 Average Overweight (x) . | . . . Largest Inventory Capacity 25 | 8 25 15 Average Capacity 10 | 7 8 15 Most Carried 15 | . 10 15 Average Carried 7 | . 6 12 Final Capacity 15 | 8 15 15 Final Carried 10 | . 10 10 Class Distribution -------------------- 100% | Mutant Dominant Class ---------------- Mutant | -10/Materials Mutant | -9/Materials Resources | -11 -10 -9 ----------- Run | Yrd Mat Mat Matter Collected 1301 | 212 754 335 Remotely . | . . . Salvage Created 1297 | . 709 588 Parts 94 | . 49 45 Haulers Intercepted 2 | . 2 . Recyclers Shooed 1 | . . 1 Parts Field Recycled . | . . . Retrieved Matter . | . . . Parts Self-Destructed . | . . . Prevented . | . . . Kills | -11 -10 -9 ------- Run | Yrd Mat Mat Combat Hostiles Destroyed 34 | . 16 18 Guns 34 | . 16 18 Classes Destroyed 9 | . 7 2 Worker 1 | . 1 . Tunneler 2 | . 1 1 Hauler 2 | . 2 . Operator 2 | . 2 . Watcher 3 | . 1 2 Swarmer 11 | . 3 8 Grunt 21 | . 13 8 Duelist 1 | . . 1 Sentry 1 | . . 1 Best Kill Streak 6 | . 3 6 Combat Bots Only 5 | . 3 5 Max Kills in Single Turn 1 | . 1 1 Gunslinging . | . . . Exploded . | . . . Melee . | . . . Uniques/NPCs Destroyed . | . . . Combat | -11 -10 -9 -------- Run | Yrd Mat Mat Hostile Shots Fired 368 | . 96 272 Missed 94 | . 23 71 Damage Taken 2896 | . 913 1983 Core 584 | . 177 407 Absorbed by Shields . | . . . Regen/Repaired (Parts) 34 | . . 34 Core Remaining (%) 64 | 100 29 . Volleys Fired 168 | . 109 59 Largest 2 | . 2 2 Hottest 130 | . 130 130 Shots Fired 281 | . 170 111 Gun 281 | . 170 111 Cannon . | . . . Launcher . | . . . Special . | . . . Kinetic 172 | . 164 8 Thermal 109 | . 6 103 Explosive . | . . . Electromagnetic . | . . . Robot Hit Streak 18 | . 18 6 Robot Miss Streak 4 | . 4 4 Penetration Max . | . . . Secondary Targets 1 | . . 1 Max Gunslinging Chain 1 | . . 1 Shots Hit Robots 181 | . 119 62 Core Hits 69 | . 40 29 Critical Kills 2 | . 2 . Critical Parts Destroyed 1 | . 1 . Critical Strikes 5 | . 3 2 Burn 2 | . . 2 Destroy 3 | . 3 . Melee Attacks 3 | . . 3 Impact . | . . . Slashing 3 | . . 3 Piercing . | . . . Sneak Attacks . | . . . Combat Hostiles . | . . . Follow-up Attacks . | . . . Damage Inflicted 2497 | . 1576 921 Guns 2457 | . 1576 881 Cannons . | . . . Explosions . | . . . Melee 35 | . . 35 Ramming 5 | . . 5 Kinetic 1569 | . 1524 45 Thermal 888 | . 52 836 Explosive . | . . . Electromagnetic . | . . . Impact . | . . . Slashing 35 | . . 35 Piercing . | . . . Highest Corruption . | . . . Average Corruption . | . . . Corruption Purged . | . . . Corruption Blocked . | . . . Overload Shots . | . . . Overflow Damage . | . . . Projectiles . | . . . Explosions . | . . . Melee . | . . . Knockbacks . | . . . Impact . | . . . Kinetic . | . . . Secondary . | . . . Self-Inflicted Damage . | . . . Shots . | . . . Rammed . | . . . Targets Rammed 1 | . . 1 Kicked 1 | . . 1 Crushed . | . . . Highest Temperature 414 | . 60 414 Average Temperature 93 | . 11 107 Received Heat Transfer 852 | . 471 381 Effects 3 | . . 3 Matter Decay 1 | . . 1 Damage (minor) 2 | . . 2 Siege Activations . | . . . Robots Corrupted . | . . . Combat Hostiles . | . . . Parts Fried . | . . . Impact Corruptions . | . . . Robots Melted . | . . . Combat Hostiles . | . . . Parts Melted 3 | . . 3 Heat Transferred 2331 | . 111 2220 Parts Sabotaged . | . . . Parts Stolen . | . . . Parts Stripped . | . . . Power Chain Reactions . | . . . Alert | -11 -10 -9 ------- Run | Yrd Mat Mat Peak Influence 242 | . 242 231 Initial . | . . . Average 62 | . 54 88 Maximum Alert Level 1 | . 1 1 Low Security (%) 97 | 100 98 93 Level 1 2 | . 1 6 Level 2 . | . . . Level 3 . | . . . Level 4 . | . . . Level 5 . | . . . High Security . | . . . Max Security . | . . . Squads Dispatched 8 | . 6 2 Investigation 5 | . 4 1 Extermination . | . . . Reinforcement 3 | . 2 1 Assault . | . . . Garrison . | . . . Intercept . | . . . Searches Triggered . | . . . Construction Impeded . | . . . Haulers Reinforced . | . . . Active Scanning Responses . | . . . Cargo Convoy Interrupts . | . . . Stealth | -11 -10 -9 --------- Run | Yrd Mat Mat Distress Signals 1 | . 1 . Communications Jammed . | . . . Distress Signals . | . . . Times Spotted 77 | . 42 35 Peak Tracking Total 7 | . 4 7 Tactical Retreats 4 | . 1 3 Traps | -11 -10 -9 ------- Run | Yrd Mat Mat Traps Triggered 2 | . 2 . Indirectly . | . . . Trap Hack Attempts . | . . . Triggered . | . . . Disarmed . | . . . Reprogrammed . | . . . Reused . | . . . Traps Extracted . | . . . Installed . | . . . Triggered . | . . . Machines | -11 -10 -9 ---------- Run | Yrd Mat Mat Machines Disabled . | . . . Max in Single Turn . | . . . Machines Repaired . | . . . Machines Dismantled . | . . . Machines Sabotaged . | . . . Overloaded Fab Kills . | . . . Hacking | -11 -10 -9 --------- Run | Yrd Mat Mat Machines Accessed 10 | . 7 3 Terminals 8 | . 6 2 Fabricators . | . . . Repair Stations 1 | . . 1 Recycling Units 1 | . 1 . Scanalyzers . | . . . Garrison Access . | . . . Total Hacks 40 | . 26 14 Successful 17 | . 10 7 Failed 23 | . 16 7 Catastrophic 3 | . 2 1 Database Lockouts . | . . . Manual 31 | . 22 9 Terminals 34 | . 24 10 Fabricators . | . . . Repair Stations 4 | . . 4 Recycling Units 2 | . 2 . Scanalyzers . | . . . Garrison Access . | . . . Terminal Hacks 5 | . 3 2 Record 1 | . . 1 Terminal Index 2 | . 1 1 Unreport Threat 1 | . 1 . Zone Layout 1 | . 1 . Fabricator Hacks . | . . . Repair Station Hacks 2 | . . 2 Scan Component 1 | . . 1 Repair 1 | . . 1 Recycling Unit Hacks 1 | . 1 . Report Inventory 1 | . 1 . Scanalyzer . | . . . Garrison Access Hacks . | . . . Unauthorized Hacks 9 | . 6 3 Terminals 8 | . 5 3 Assimilate 1 | . . 1 Botnet 7 | . 5 2 Fabricators . | . . . Repair Stations . | . . . Recycling Units 1 | . 1 . Reject 1 | . 1 . Scanalyzers . | . . . Garrison Access . | . . . Data Cores Recovered . | . . . Used . | . . . Hacking Detections 10 | . 7 3 Full Trace Events 8 | . 5 3 Feedback Events . | . . . Feedback Blocked . | . . . Robot Schematics Acquired . | . . . Robots Built . | . . . Authchips . | . . . Time . | . . . Total Robot Build Rating . | . . . Part Schematics Acquired . | . . . Parts Built . | . . . Authchips . | . . . Time . | . . . Total Part Build Rating . | . . . Parts Repaired 1 | . . 1 Time 38 | . . 38 Parts Recycled . | . . . Recycled Matter . | . . . Retrieved Matter . | . . . Retrieved Components . | . . . Parts Scanalyzed . | . . . Part Schematics Acquired . | . . . Parts Damaged . | . . . Bothacking | -11 -10 -9 ------------ Run | Yrd Mat Mat Used RIF Installer . | . . . Robots Hacked . | . . . Non-combat . | . . . Combat . | . . . Robot Hacks Applied . | . . . Relay Couplers Released . | . . . Fabnet Peak Effective % . | . . . Robots Rewired . | . . . Allies Hacked . | . . . Hacks Repelled . | . . . Allies | -11 -10 -9 -------- Run | Yrd Mat Mat Total Allies . | . . . Largest Group . | . . . Highest-Rated Group . | . . . Highest-Rated Ally . | . . . Total Orders . | . . . Ally Attacks . | . . . Total Damage . | . . . Kills . | . . . Allies Corrupted . | . . . Allies Melted . | . . . Intel | -11 -10 -9 ------- Run | Yrd Mat Mat Robot Analysis Total . | . . . Derelict Logs Recovered . | . . . Drone Launches . | . . . Drone Recoveries . | . . . Exploration | -11 -10 -9 ------------- Run | Yrd Mat Mat Turns Passed 3410 | 74 2415 921 Spaces Moved 1601 | 53 1247 301 Core 25 | 23 . 2 Treads 1342 | 30 1247 65 Legs 234 | . . 234 Wheels . | . . . Hover . | . . . Flight . | . . . Fastest Speed 50 | 50 160 130 Average Speed 163 | 124 160 185 Slowest Speed 650 | 200 160 650 Overloaded Moves . | . . . Propulsion Burnouts . | . . . Robots Hopped . | . . . Cave-ins Triggered . | . . . Exploration Rate (%) 41 | 4 97 22 Regions Visited 2 Branch Regions . Pre-discovered Areas . | . . . Known Exits Taken . | . . . Unknown Exits Taken 2 | 1 1 . Scrap Searched . | . . . Spaces Dug . | . . . Terrain Destroyed . | . . . Melee . | . . . Projectile . | . . . AOE . | . . . Terrain Rammed . | . . . Walls Destroyed . | . . . Machines Disabled . | . . . Actions | -11 -10 -9 --------- Run | Yrd Mat Mat Total 2100 | 58 1494 548 Wait 236 | . 102 134 Move 1599 | 52 1246 301 Hop . | . . . Pick Up 23 | . 12 11 Fast Attach 22 | 6 6 10 Attach 14 | . 1 13 Detach 6 | . 2 4 Swap 14 | . 9 5 Drop 14 | . 7 7 Fire 168 | . 109 59 Melee 3 | . . 3 Ram . | . . . Kick 1 | . . 1 Crush . | . . . Escape Stasis . | . . . Rewire . | . . . Trap . | . . . Miscellaneous . | . . . Route ------- -11/Scrapyard -10/Materials (discovered 5 exits: *Mat x3 / [*Min] / [*Sub]) -9/Materials (discovered 1 exit: [*Min]) History --------- Turn | Location | Event 6 | -11/Scrapyard | Discovered new exit (range 16) 75 | -11/Scrapyard | Entered Materials 314 | -10/Materials | Discovered new exit (range 16) 316 | -10/Materials | Build established: Mutant 739 | -10/Materials | Discovered new exit (range 10) 989 | -10/Materials | Core integrity fell below 50% 1271 | -10/Materials | Discovered new exit (range 16) 1580 | -10/Materials | Discovered new exit (range 12) 1810 | -10/Materials | Discovered new exit (range 9) 2490 | -10/Materials | Entered another Materials area 2490 | -9/Materials | Evolved 2 slots: Utility x2 3156 | -9/Materials | Repaired Imp. Heat Sink 3202 | -9/Materials | Discovered new exit (range 7) 3231 | -9/Materials | Core integrity fell below 50% 3285 | -9/Materials | Core integrity fell below 20% 3293 | -9/Materials | Lost 8 parts (2p2n2u2w) 3411 | -9/Materials | Destroyed by G-34 Mercenary with Small Laser Last Messages --------------- 03286_ S-10 Pest destroyed. 03296_ Overheating: Beam Rifle damaged (-13). 03301_ Overheating: Beam Rifle damaged (-1). 03301_ Heat Sink melted. 03301_ G-34 Mercenary destroyed. 03304_ Overheating: Matter decay (-63). 03306_ Acquired Lgt. Ion Engine. 03309_ Acquired 29 matter. 03313_ Acquired Lgt. Assault Rifle. 03316_ U-05 Engineer builds a Door. 03327_ Acquired 40 matter. 03338_ Dropped Lgt. Treads. 03348_ Acquired Lgt. Treads. 03379_ Titanium Leg severed. 03389_ Beam Rifle destroyed. 03389_ Lgt. Ion Engine destroyed. 03390_ Titanium Leg destroyed. 03392_ L-31 Rogue destroyed. 03397_ Acquired Katana. 03401_ Acquired Imp. Ion Engine. Map ----- +----------------------------------------------------+ | ????????????????????????????????????????????? | | ????????????????????????????????????????????? | | ????????????????????????????????????????????? | | ? ????????????????????????????????????????? | | ????????????????????????????????????????? | | # ??????????????????????????????????????? | | # ??????????????????????????????????????? | | # ??????????????????????????????????????? | | # ???????? ???????????????????????????? | | # ???????# ???????????????????????????? | | # ???????# ??????????????????????????? | | ##???#+#?# #??????????????????????????? | | ##???# #?# #??????????????????????????? | | ##???# #?# #? "???????????????????????? | | ###### #?# # "???????????????????????? | | ###### ### + ?????????????????????????? | | #??????????????????????????? | | [ #??????????????????????????? | | %= #??????????????????????????? | | %% ##########?????????????????? | | %####### # #?????????????????? | | # # """ =#?????????????????? | | = """ # =# "R" %#?????????????????? | | """ # =*#=" " m #?????????????????? | | """ # [! + = g #?????????????????? | | # !!=%#|! """ @#?????????????????? | | # [! %#= """g #?????????????????? | | " " # ^ # """ #?????????????????? | | "R" # # #?????????????????? | | """ # ################???????????? | | #+###### ################???????????? | | # ###### ^ % # ##???????????? | | # ###### # ##???????????? | | # ^ +% [ ##???????????? | | ^ """ # = *==##???????????? | | #### """"" # =*=##???????????? | | #### """"" ##+#########+###???????????? | | #?## """"" ####### ###???????????? | | ??## """ ##???##=##????????????? | | ??## ##???##*##????????????? | | ??## = ##???##=##????????????? | | ??###+###########* *= ####### ##????????????? | | # ########"#########=##????????????? | | # ##?## =%% #### ####??????????? | | # ##?## ! * ####+####??????????? | | # ##?## """ # ]]##??????????? | | # ! ##?## """ # ]]]##??????????? | | # ##?## " """ # [ ]]##??????????? | | ## ##?## T """ # ##??????????? | | ## ##?## " """ # ##??????????? | +----------------------------------------------------+ Best States ------------- Heat Dissipation 42 Energy Generation 14 Energy Capacity 415 Matter Stores 300 Matter Capacity 400 Sight Range 16 Robot Scan Range 14 Terrain Scan Density 10 Armor Coverage 150 Evasion (%) 55 Recoil Reduction 2 Item Schematics ----------------- None Robot Schematics ------------------ None Fabricated ------------ Nothing Alien Tech Used ----------------- None Achievements -------------- None Challenges ------------ None Game ------ Seed ReactiveMicroShotgun Manual? 0 Play Time 00:24:42 Cumulative 26.7 hours Start 2024.04.09 @ 10:13:57 End 2024.04.09 @ 10:36:46 Sessions 1 Manual Loads 0 Difficulty Rogue Special Mode None Game No. 34 Rogue 28 Adventurer 6 Explorer 0 Win Type - Total 0 Types 0/0/0/0/0/0/0/0/0 Lore% 17 Gallery% 34 Achievement% 27 Wizard Run 0 Options --------- Layout 0 ASCII 0 Keyboard 1 Movement Numpad Keybinds 0 Fullscreen 1 Font 18/SmallcapsGlow Map View 76x50 Zoom Use 0% Tactical HUD 1 Map Filters NONE Filters NONE Steam 1 RUN: 13b3f2f0-5cfb-4471-b650-fc5e8ed0b920